fUST/lending_fUST_20250831
["ID","MTS","AMOUNT","RATE_DAILY","PERIOD"]
[382351821,1756584644720,-480.0,0.00019178,2]
[382351823,1756584644730,-1659.38,0.00019178,2]
[382351825,1756584644739,-480.0,0.00019178,2]
[382351827,1756584644749,-1146.6,0.00019178,2]
[382351829,1756584644761,-480.0,0.00019178,2]
[382351832,1756584644771,-480.0,0.00019178,2]
[382351834,1756584644781,-480.0,0.00019178,2]
[382351836,1756584644790,-600.17,0.00019178,2]
[382351837,1756584644799,-553.25,0.00019178,2]
[382351839,1756584644810,-151.0,0.00019178,2]
[382351841,1756584644819,-480.0,0.00019178,2]
[382351843,1756584644827,-151.0,0.00019178,2]
[382351845,1756584644836,-151.0,0.00019178,2]
[382351847,1756584644844,-212.6688,0.00019178,2]
[382351849,1756584644854,-1844.34,0.00019178,2]
[382351851,1756584644863,-1309.54,0.00019178,2]
[382351853,1756584644871,-480.0,0.00019178,2]
[382351855,1756584644880,-480.0,0.00019178,2]
[382351857,1756584644889,-500.0,0.00019178,2]
[382351859,1756584644899,-500.0,0.00019178,2]
[382351861,1756584644907,-500.0,0.00019178,2]
[382351863,1756584644915,-500.0,0.00019178,2]
[382351865,1756584644924,-500.0,0.00019178,2]
[382351867,1756584644933,-500.0,0.00019178,2]
[382351869,1756584644942,-500.0,0.00019178,2]
[382351871,1756584644951,-500.0,0.00019178,2]
[382351873,1756584644959,-480.0,0.00019178,2]
[382351875,1756584644968,-500.0,0.00019178,2]
[382351877,1756584644977,-1325.7,0.00019178,2]
[382351879,1756584644986,-632.51,0.00019178,2]
[382351881,1756584644996,-570.30515454,0.00019178,2]
[382351883,1756584645006,-480.0,0.00019178,2]
[382351885,1756584645015,-296.45809168,0.00019178,2]
[382351887,1756584645024,-1030.36,0.00019178,2]
[382351889,1756584645033,-480.0,0.00019178,2]
[382351891,1756584645042,-1927.28,0.00019178,2]
[382351893,1756584645051,-817.61,0.00019178,2]
[382351895,1756584645060,-480.0,0.00019178,2]
[382351897,1756584645068,-480.0,0.00019178,2]
[382351899,1756584645077,-650.69,0.00019178,2]
[382351901,1756584645086,-1470.54,0.00019178,2]
[382351903,1756584645095,-480.0,0.00019178,2]
[382351905,1756584645104,-480.0,0.00019178,2]
[382351907,1756584645113,-480.0,0.00019178,2]
[382351909,1756584645121,-1377.54,0.00019178,2]
[382351911,1756584645129,-480.0,0.00019178,2]
[382351913,1756584645138,-480.0,0.00019178,2]
[382351915,1756584645146,-480.0,0.00019178,2]
[382351917,1756584645155,-1289.42,0.00019178,2]
[382351919,1756584645164,-726.45,0.00019178,2]
[382351921,1756584645173,-480.0,0.00019178,2]
[382351923,1756584645180,-599.79,0.00019178,2]
[382351925,1756584645189,-480.0,0.00019178,2]
[382351926,1756584645197,-454.5579201,0.00019178,2]
[382351928,1756584645206,-500.22,0.00019178,2]
[382351930,1756584645215,-480.0,0.00019178,2]
[382351932,1756584645224,-643.6,0.00019178,2]
[382351934,1756584645233,-480.0,0.00019178,2]
[382351936,1756584645242,-152.35752701,0.00019178,2]
[382351938,1756584645251,-480.0,0.00019178,2]
[382351940,1756584645260,-480.0,0.00019178,2]
[382351942,1756584645268,-1247.3,0.00019178,2]
[382351945,1756584645277,-938.31,0.00019178,2]
[382351947,1756584645286,-480.0,0.00019178,2]
[382351950,1756584645294,-480.0,0.00019178,2]
[382351952,1756584645303,-1273.25,0.00019178,2]
[382351954,1756584645312,-108.06802318,0.00019178,2]
[382353162,1756584660429,-210.32521807,0.00018986,2]
[382355539,1756584744973,168.702762,0.00024,30]
[382355541,1756584854295,-279.62088815,0.00018796,2]
[382355542,1756584857535,-198.54325593,0.00018796,2]
[382355543,1756584859253,-217.76846914,0.00018796,2]
[382355544,1756584863813,-205.82930249,0.00018796,2]
[382355545,1756584865210,-348.30068373,0.00018796,2]
[382355546,1756584869094,-160.0,0.00018796,2]
[382355547,1756584871861,-203.95911309,0.00018796,2]
[382355548,1756584875468,-162.15472784,0.00018796,2]
[382355550,1756585050564,5000.0,0.00018011,2]
[382355551,1756585051282,-302.51602579,0.00018232,2]
[382355552,1756585072949,5000.0,0.00018011,2]
[382355553,1756585095210,0.01,0.00018011,2]
[382355554,1756585095233,4999.99,0.00018011,2]
[382355555,1756585117506,5000.0,0.00018011,2]
[382355556,1756585140538,0.02,0.00018011,2]
[382355557,1756585140560,4999.98,0.00018011,2]
[382355558,1756585163212,5000.0,0.00018011,2]
[382355559,1756585171423,0.03,0.00018011,2]
[382355560,1756585171445,1223.37509628,0.00018011,2]
[382355561,1756585187064,5000.0,0.00018011,2]
[382355562,1756585195200,3776.59490372,0.00018011,2]
[382355563,1756585210827,0.04,0.00018011,2]
[382355564,1756585210851,4999.96,0.00018011,2]
[382355565,1756585218559,5000.0,0.00018011,2]
[382355566,1756585233688,0.05,0.00018011,2]
[382355567,1756585233712,4999.95,0.00018011,2]
[382355568,1756585256445,1810.15945435,0.00018011,2]
[382355569,1756585263612,374.500577,0.00013699,2]
[382355573,1756585343154,168.702762,0.00024,30]
[382355583,1756585409829,-45.73821021,0.00018232,2]
[382355584,1756585409852,-227.98808017,0.00018458,2]
[382355585,1756585409876,-153.32839005,0.00018813,2]
[382355586,1756585412584,-14.67160995,0.00018813,2]
[382355604,1756585653286,-285.54895243,0.00018835,2]
[382355605,1756585656968,-151.56897983,0.00018835,2]
[382355607,1756585660821,-179.128694,0.00018647,2]
[382355608,1756585663141,-154.28168867,0.00018647,2]
[382355609,1756585666948,-174.53682288,0.00018647,2]
[382355612,1756585670357,-206.98931217,0.00018647,2]
[382355613,1756585672493,-217.86745343,0.00018647,2]
[382355614,1756585674358,-154.28168867,0.00018647,2]
[382355616,1756585678720,-136.33943646,0.00018647,2]
[382355617,1756585678743,-30.62960035,0.00018835,2]
[382355618,1756585683312,-242.21487359,0.00018835,2]
[382355619,1756585688842,-480.0,0.00018283,2]
[382355622,1756585691645,-219.26402932,0.00018283,2]
[382355623,1756585693233,-240.80449523,0.00018283,2]
[382355626,1756585698761,-212.19964116,0.00018283,2]
[382355627,1756585702052,-230.25978769,0.00018283,2]
[382355628,1756585706118,-284.90876191,0.00018283,2]
[382355629,1756585709046,-229.06354183,0.00018283,2]
[382355632,1756585712817,-286.02769626,0.00018283,2]
[382355633,1756585715834,-250.97651794,0.00018283,2]
[382355634,1756585718494,-327.66965593,0.00018283,2]
[382355635,1756585720086,-174.01879019,0.00018283,2]
[382355636,1756585723309,-158.79265018,0.00018283,2]
[382355637,1756585729450,-162.49542098,0.00018283,2]
[382355638,1756585732121,-264.00677888,0.00018283,2]
[382355639,1756585734818,-240.53584913,0.00018283,2]
[382355640,1756585736465,-159.80922609,0.00018283,2]
[382355641,1756585739997,-212.7986565,0.00018283,2]
[382355643,1756585744308,-177.01210145,0.00018283,2]
[382355644,1756585746025,-222.62729898,0.00018283,2]
[382355645,1756585748014,-302.64966226,0.00018283,2]
[382355646,1756585750410,-421.88548426,0.00018283,2]
[382355647,1756585752609,-328.86551528,0.00018283,2]
[382355650,1756585754692,-300.0,0.00018283,2]
[382355651,1756585757627,-128.20823245,0.00018283,2]
[382355652,1756585757652,-214.09981212,0.00018835,2]
[382355653,1756585760467,-159.49164245,0.00018835,2]
[382355654,1756585763282,-359.45326583,0.00018835,2]
[382355655,1756585765905,-183.28086761,0.00018835,2]
[382355656,1756585769296,-351.8776903,0.00018835,2]
[382355657,1756585772082,-270.86907218,0.00018835,2]
[382355658,1756585773660,-209.92935254,0.00018835,2]
[382355659,1756585776909,-229.8203481,0.00018482,2]
[382355660,1756585778998,-229.90672376,0.00018482,2]
[382355661,1756585780676,-220.21225483,0.00018482,2]
[382355662,1756585783024,-275.256478,0.00018482,2]
[382355663,1756585784501,-457.08840607,0.00018482,2]
[382355664,1756585787776,-504.87141545,0.00018482,2]
[382355665,1756585790054,-304.32739485,0.00018482,2]
[382355666,1756585793458,-219.89239373,0.00018482,2]
[382355667,1756585796249,-175.54632062,0.00018482,2]
[382355668,1756585798718,-302.57643837,0.00018482,2]
[382355669,1756585802603,-232.12252053,0.00018482,2]
[382355670,1756585805519,-290.89535144,0.00018482,2]
[382355671,1756585808237,-220.21225483,0.00018482,2]
[382355672,1756585811686,-435.01384916,0.00018482,2]
[382355673,1756585813677,-160.59501291,0.00018482,2]
[382355674,1756585816330,-361.56423042,0.00018482,2]
[382355675,1756585818642,-276.7311791,0.00018482,2]
[382355676,1756585821456,-172.3908357,0.00018482,2]
[382355677,1756585825697,-268.16717598,0.00018482,2]
[382355678,1756585828757,-480.0,0.00018482,2]
[382355716,1756585832043,-4063.28581945,0.00018482,2]
[382355718,1756585832053,-1200.0,0.00018834,2]
[382355720,1756585832063,-2541.03589077,0.00018835,2]
[382355722,1756585832074,-300.0,0.00019023,2]
[382355724,1756585832083,-300.0,0.00019024,2]
[382355726,1756585832095,-300.0,0.00019024,2]
[382355727,1756585832107,-214.72563862,0.00019024,2]
[382355763,1756585837870,-85.27436138,0.00019024,2]
[382355765,1756585837879,-205.82554506,0.00019024,2]
[382355771,1756585837929,-94.17445494,0.00019024,2]
[382355773,1756585837938,-217.34977173,0.00019025,2]
[382355775,1756585837948,-425.65682239,0.00019025,2]
[382355777,1756585837959,-216.25802849,0.00019025,2]
[382355779,1756585837973,-29.16092245,0.00019025,2]
[382355781,1756585837993,-130.83907755,0.00019025,2]
[382355783,1756585838002,-204.86092245,0.00019026,2]
[382355786,1756585838015,-640.88967964,0.00019026,2]
[382355788,1756585838024,-232.73020027,0.00019026,2]
[382355791,1756585838033,-160.0,0.00019026,2]
[382355793,1756585838042,-160.0,0.00019029,2]
[382355796,1756585838052,-417.15472785,0.00019029,2]
[382355798,1756585838061,-181.45615922,0.00019073,2]
[382355800,1756585838071,-414.2940249,0.00019078,2]
[382355802,1756585838080,-827.44109568,0.00019078,2]
[382355804,1756585838089,-2177.09589935,0.00019078,2]
[382356053,1756585840706,-0.00684412,0.00019025,2]
[382356096,1756585843386,-11361.55217239,0.00019025,2]
[382356097,1756585843397,-6231.02507153,0.00019078,2]
[382356099,1756585843406,-1810.3648754,0.00019131,2]
[382356101,1756585843415,-414.29402487,0.00019147,2]
[382356103,1756585843425,-2347.87260389,0.00019161,2]
[382356104,1756585843435,-250.0,0.00019166,2]
[382356105,1756585843444,-250.0,0.00019166,2]
[382356107,1756585843453,-250.0,0.00019166,2]
[382356109,1756585843463,-250.0,0.00019166,2]
[382356111,1756585843472,-187.78006525,0.00019166,2]
[382356113,1756585843482,-172.3,0.00019168,3]
[382356114,1756585843491,-516.9,0.00019168,3]
[382356115,1756585843501,-858.1403364,0.0001917,2]
[382356116,1756585843512,-358.64497169,0.00019173,2]
[382356117,1756585843528,-500.0,0.00019173,2]
[382356118,1756585843539,-500.0,0.00019173,2]
[382356119,1756585843548,-423.64203143,0.00019173,2]
[382356120,1756585843559,-500.0,0.00019173,2]
[382356121,1756585843569,-500.0,0.00019173,2]
[382356122,1756585843579,-500.0,0.00019173,2]
[382356123,1756585843588,-500.0,0.00019173,2]
[382356124,1756585843598,-500.0,0.00019173,2]
[382356125,1756585843608,-500.0,0.00019173,2]
[382356126,1756585843618,-500.0,0.00019173,2]
[382356127,1756585843628,-500.0,0.00019173,2]
[382356128,1756585843812,-500.0,0.00019173,2]
[382356129,1756585843827,-562.37385276,0.00019173,2]
[382356130,1756585843836,-500.0,0.00019173,2]
[382356131,1756585843847,-500.0,0.00019173,2]
[382356132,1756585843856,-500.0,0.00019173,2]
[382356133,1756585843867,-500.0,0.00019173,2]
[382356134,1756585843877,-360.87585062,0.00019173,2]
[382356135,1756585843889,-500.0,0.00019173,2]
[382356136,1756585843900,-500.0,0.00019173,2]
[382356137,1756585843910,-500.0,0.00019173,2]
[382356138,1756585843921,-500.0,0.00019173,2]
[382356139,1756585843931,-500.0,0.00019177,2]
[382356140,1756585843941,-199.94457462,0.00019177,2]
[382356141,1756585843951,-211.8177182,0.00019177,2]
[382356142,1756585843963,-160.10901673,0.00019177,2]
[382356143,1756585843972,-154.28168867,0.00019177,2]
[382356144,1756585843982,-383.10583333,0.00019177,2]
[382356145,1756585843992,-500.0,0.00019177,2]
[382356146,1756585844001,-252.66496406,0.00019177,2]
[382356147,1756585844010,-303.47865943,0.00019177,2]
[382356148,1756585844020,-182.5702157,0.00019178,2]
[382356149,1756585844029,-199.50972752,0.00019178,2]
[382356150,1756585844039,-480.0,0.00019178,2]
[382356151,1756585844048,-476.07858938,0.00019178,2]
[382356152,1756585844057,-500.0,0.00019178,2]
[382356153,1756585844066,-480.0,0.00019178,2]
[382356154,1756585844077,-480.0,0.00019178,2]
[382356155,1756585844087,-480.0,0.00019178,2]
[382356156,1756585844097,-480.0,0.00019178,2]
[382356157,1756585844107,-696.66,0.00019178,2]
[382356158,1756585844116,-480.0,0.00019178,2]
[382356159,1756585844125,-510.45,0.00019178,2]
[382356160,1756585844135,-480.0,0.00019178,2]
[382356161,1756585844144,-480.0,0.00019178,2]
[382356162,1756585844154,-480.0,0.00019178,2]
[382356163,1756585844163,-480.0,0.00019178,2]
[382356164,1756585844173,-480.0,0.00019178,2]
[382356165,1756585844182,-480.0,0.00019178,2]
[382356166,1756585844191,-480.0,0.00019178,2]
[382356167,1756585844201,-480.0,0.00019178,2]
[382356168,1756585844210,-1136.14,0.00019178,2]
[382356169,1756585844219,-480.0,0.00019178,2]
[382356170,1756585844229,-791.53,0.00019178,2]
[382356171,1756585844238,-480.0,0.00019178,2]
[382356172,1756585844247,-1084.05,0.00019178,2]
[382356173,1756585844257,-517.35830832,0.00019178,2]
[382356174,1756585844267,-480.0,0.00019178,2]
[382356175,1756585844277,-480.0,0.00019178,2]
[382356176,1756585844289,-480.0,0.00019178,2]
[382356177,1756585844299,-480.0,0.00019178,2]
[382356178,1756585844311,-480.0,0.00019178,2]
[382356179,1756585844320,-480.0,0.00019178,2]
[382356180,1756585844329,-589.34,0.00019178,2]
[382356181,1756585844339,-849.84,0.00019178,2]
[382356182,1756585844348,-480.0,0.00019178,2]
[382356183,1756585844357,-480.0,0.00019178,2]
[382356184,1756585844367,-480.0,0.00019178,2]
[382356185,1756585844376,-480.0,0.00019178,2]
[382356186,1756585844386,-480.0,0.00019178,2]
[382356187,1756585844395,-480.0,0.00019178,2]
[382356188,1756585844404,-933.92,0.00019178,2]
[382356189,1756585844414,-480.0,0.00019178,2]
[382356190,1756585844423,-480.0,0.00019178,2]
[382356191,1756585844433,-530.2,0.00019178,2]
[382356192,1756585844443,-1128.24,0.00019178,2]
[382356193,1756585844456,-480.0,0.00019178,2]
[382356194,1756585844466,-480.0,0.00019178,2]
[382356195,1756585844477,-436.32539182,0.00019178,2]
[382356196,1756585844489,-480.0,0.00019178,2]
[382356197,1756585844499,-987.43,0.00019178,2]
[382356198,1756585844511,-1270.46,0.00019178,2]
[382356199,1756585844524,-480.0,0.00019178,2]
[382356200,1756585844535,-480.0,0.00019178,2]
[382356201,1756585844546,-803.54,0.00019178,2]
[382356202,1756585844557,-480.0,0.00019178,2]
[382356203,1756585844568,-480.0,0.00019178,2]
[382356204,1756585844577,-639.79,0.00019178,2]
[382356205,1756585844587,-738.06,0.00019178,2]
[382356206,1756585844598,-480.0,0.00019178,2]
[382356207,1756585844607,-480.0,0.00019178,2]
[382356208,1756585844617,-480.0,0.00019178,2]
[382356209,1756585844627,-588.71,0.00019178,2]
[382356210,1756585844636,-480.0,0.00019178,2]
[382356211,1756585844646,-1320.14,0.00019178,2]
[382356212,1756585844656,-480.0,0.00019178,2]
[382356213,1756585844665,-480.0,0.00019178,2]
[382356214,1756585844675,-1493.45,0.00019178,2]
[382356215,1756585844684,-655.11,0.00019178,2]
[382356216,1756585844694,-480.0,0.00019178,2]
[382356217,1756585844703,-480.0,0.00019178,2]
[382356218,1756585844714,-549.97,0.00019178,2]
[382356219,1756585844724,-480.0,0.00019178,2]
[382356220,1756585844733,-480.0,0.00019178,2]
[382356221,1756585844743,-480.0,0.00019178,2]
[382356222,1756585844752,-553.6,0.00019178,2]
[382356223,1756585844761,-480.0,0.00019178,2]
[382356224,1756585844771,-346.41763707,0.00019178,2]
[382356225,1756585844780,-986.59,0.00019178,2]
[382356226,1756585844789,-480.0,0.00019178,2]
[382356227,1756585844798,-480.0,0.00019178,2]
[382356228,1756585844808,-480.0,0.00019178,2]
[382356229,1756585844817,-480.0,0.00019178,2]
[382356230,1756585844827,-698.24,0.00019178,2]
[382356231,1756585844836,-480.0,0.00019178,2]
[382356232,1756585844846,-480.0,0.00019178,2]
[382356233,1756585844856,-576.98306428,0.00019178,2]
[382356234,1756585844865,-480.0,0.00019178,2]
[382356235,1756585844875,-480.0,0.00019178,2]
[382356236,1756585844884,-480.0,0.00019178,2]
[382356237,1756585844894,-151.0,0.00019178,2]
[382356238,1756585844903,-1220.2,0.00019178,2]
[382356239,1756585844913,-2012.72,0.00019178,2]
[382356240,1756585844923,-623.58,0.00019178,2]
[382356241,1756585844933,-480.0,0.00019178,2]
[382356242,1756585844944,-573.65,0.00019178,2]
[382356243,1756585844954,-480.0,0.00019178,2]
[382356244,1756585844964,-480.0,0.00019178,2]
[382356245,1756585844974,-606.85,0.00019178,2]
[382356246,1756585844985,-574.95,0.00019178,2]
[382356247,1756585844995,-480.0,0.00019178,2]
[382356248,1756585845004,-480.0,0.00019178,2]
[382356249,1756585845014,-480.0,0.00019178,2]
[382356250,1756585845023,-480.0,0.00019178,2]
[382356251,1756585845033,-608.21,0.00019178,2]
[382356252,1756585845043,-683.1,0.00019178,2]
[382356253,1756585845052,-151.0,0.00019178,2]
[382356254,1756585845062,-480.0,0.00019178,2]
[382356255,1756585845072,-480.0,0.00019178,2]
[382356256,1756585845081,-480.0,0.00019178,2]
[382356257,1756585845091,-480.0,0.00019178,2]
[382356258,1756585845101,-500.0,0.00019178,2]
[382356259,1756585845111,-547.21,0.00019178,2]
[382356260,1756585845121,-500.0,0.00019178,2]
[382356261,1756585845130,-497.95,0.00019178,2]
[382356262,1756585845140,-500.0,0.00019178,2]
[382356263,1756585845150,-500.0,0.00019178,2]
[382356264,1756585845159,-480.0,0.00019178,2]
[382356265,1756585845168,-500.0,0.00019178,2]
[382356266,1756585845177,-1515.27,0.00019178,2]
[382356267,1756585845187,-486.96,0.00019178,2]
[382356268,1756585845196,-480.0,0.00019178,2]
[382356269,1756585845205,-151.0,0.00019178,2]
[382356270,1756585845214,-500.0,0.00019178,2]
[382356271,1756585845223,-151.0,0.00019178,2]
[382356272,1756585845232,-151.0,0.00019178,2]
[382356273,1756585845242,-151.0,0.00019178,2]
[382356274,1756585845251,-151.0,0.00019178,2]
[382356275,1756585845260,-480.0,0.00019178,2]
[382356276,1756585845270,-480.0,0.00019178,2]
[382356277,1756585845279,-1541.1,0.00019178,2]
[382356278,1756585845288,-480.0,0.00019178,2]
[382356279,1756585845297,-565.21,0.00019178,2]
[382356280,1756585845307,-1229.13,0.00019178,2]
[382356281,1756585845316,-480.0,0.00019178,2]
[382356282,1756585845325,-792.73,0.00019178,2]
[382356283,1756585845334,-480.0,0.00019178,2]
[382356284,1756585845344,-480.0,0.00019178,2]
[382356285,1756585845354,-500.0,0.00019178,2]
[382356286,1756585845363,-480.0,0.00019178,2]
[382356287,1756585845373,-480.0,0.00019178,2]
[382356288,1756585845382,-480.0,0.00019178,2]
[382356289,1756585845392,-1028.78,0.00019178,2]
[382356290,1756585845401,-480.0,0.00019178,2]
[382356291,1756585845410,-480.0,0.00019178,2]
[382356292,1756585845420,-480.0,0.00019178,2]
[382356293,1756585845429,-480.0,0.00019178,2]
[382356294,1756585845439,-480.0,0.00019178,2]
[382356295,1756585845448,-480.0,0.00019178,2]
[382356296,1756585845457,-500.0,0.00019178,2]
[382356297,1756585845467,-480.0,0.00019178,2]
[382356298,1756585845477,-500.0,0.00019178,2]
[382356299,1756585845486,-480.0,0.00019178,2]
[382356300,1756585845495,-500.0,0.00019178,2]
[382356301,1756585845505,-480.0,0.00019178,2]
[382356302,1756585845515,-175.88304526,0.00019178,2]
[382356303,1756585845527,-500.0,0.00019178,2]
[382356304,1756585845537,-480.0,0.00019178,2]
[382356305,1756585845546,-1529.75,0.00019178,2]
[382356306,1756585845555,-151.0,0.00019178,2]
[382356307,1756585845566,-480.0,0.00019178,2]
[382356308,1756585845575,-151.0,0.00019178,2]
[382356309,1756585845585,-500.0,0.00019178,2]
[382356310,1756585845595,-151.0,0.00019178,2]
[382356311,1756585845605,-151.0,0.00019178,2]
[382356312,1756585845614,-268.9222995,0.00019178,2]
[382356313,1756585845623,-480.0,0.00019178,2]
[382356314,1756585845632,-480.0,0.00019178,2]
[382356315,1756585845641,-480.0,0.00019178,2]
[382356316,1756585845651,-907.88,0.00019178,2]
[382356317,1756585845660,-480.0,0.00019178,2]
[382356318,1756585845669,-480.0,0.00019178,2]
[382356319,1756585845678,-480.0,0.00019178,2]
[382356320,1756585845688,-480.0,0.00019178,2]
[382356321,1756585845697,-480.0,0.00019178,2]
[382356322,1756585845707,-480.0,0.00019178,2]
[382356323,1756585845717,-480.0,0.00019178,2]
[382356324,1756585845727,-480.0,0.00019178,2]
[382356325,1756585845736,-480.0,0.00019178,2]
[382356326,1756585845745,-480.0,0.00019178,2]
[382356327,1756585845755,-751.5,0.00019178,2]
[382356328,1756585845764,-1272.3,0.00019178,2]
[382356329,1756585845773,-480.0,0.00019178,2]
[382356330,1756585845783,-480.0,0.00019178,2]
[382356331,1756585845793,-480.0,0.00019178,2]
[382356332,1756585845803,-480.0,0.00019178,2]
[382356333,1756585845812,-480.0,0.00019178,2]
[382356334,1756585845822,-480.0,0.00019178,2]
[382356335,1756585845832,-480.0,0.00019178,2]
[382356336,1756585845841,-627.47,0.00019178,2]
[382356337,1756585845851,-480.0,0.00019178,2]
[382356338,1756585845861,-480.0,0.00019178,2]
[382356339,1756585845870,-480.0,0.00019178,2]
[382356340,1756585845879,-480.0,0.00019178,2]
[382356341,1756585845889,-480.0,0.00019178,2]
[382356342,1756585845898,-480.0,0.00019178,2]
[382356343,1756585845908,-929.38,0.00019178,2]
[382356344,1756585845918,-534.94,0.00019178,2]
[382356345,1756585845927,-480.0,0.00019178,2]
[382356346,1756585845937,-480.0,0.00019178,2]
[382356347,1756585845946,-480.0,0.00019178,2]
[382356348,1756585845956,-480.0,0.00019178,2]
[382356349,1756585845965,-988.83,0.00019178,2]
[382356350,1756585845975,-665.85,0.00019178,2]
[382356351,1756585845984,-480.0,0.00019178,2]
[382356352,1756585845994,-480.0,0.00019178,2]
[382356353,1756585846003,-480.0,0.00019178,2]
[382356354,1756585846012,-151.0,0.00019178,2]
[382356355,1756585846022,-480.0,0.00019178,2]
[382356356,1756585846031,-151.0,0.00019178,2]
[382356357,1756585846041,-151.0,0.00019178,2]
[382356358,1756585846051,-1058.1,0.00019178,2]
[382356359,1756585846061,-480.0,0.00019178,2]
[382356360,1756585846071,-583.33,0.00019178,2]
[382356361,1756585846081,-500.0,0.00019178,2]
[382356362,1756585846090,-1918.74,0.00019178,2]
[382356363,1756585846100,-549.25,0.00019178,2]
[382356364,1756585846110,-480.0,0.00019178,2]
[382356365,1756585846119,-603.67,0.00019178,2]
[382356366,1756585846129,-480.0,0.00019178,2]
[382356367,1756585846138,-480.0,0.00019178,2]
[382356368,1756585846148,-547.49,0.00019178,2]
[382356370,1756585846157,-480.0,0.00019178,2]
[382356372,1756585846168,-480.0,0.00019178,2]
[382356374,1756585846177,-480.0,0.00019178,2]
[382356376,1756585846187,-480.0,0.00019178,2]
[382356377,1756585846196,-480.0,0.00019178,2]
[382356379,1756585846206,-480.0,0.00019178,2]
[382356381,1756585846215,-480.0,0.00019178,2]
[382356382,1756585846225,-480.0,0.00019178,2]
[382356384,1756585846236,-480.0,0.00019178,2]
[382356386,1756585846246,-544.26,0.00019178,2]
[382356388,1756585846255,-480.0,0.00019178,2]
[382356389,1756585846265,-667.3417639,0.00019178,2]
[382356393,1756585846291,-326.3682361,0.00019178,2]
[382356394,1756585846301,-480.0,0.00019178,2]
[382356396,1756585846310,-480.0,0.00019178,2]
[382356398,1756585846320,-480.0,0.00019178,2]
[382356400,1756585846329,-1362.4,0.00019178,2]
[382356402,1756585846339,-500.0,0.00019178,2]
[382356404,1756585846349,-500.0,0.00019178,2]
[382356406,1756585846359,-469.80261877,0.00019178,2]
[382356408,1756585846368,-480.0,0.00019178,2]
[382356411,1756585846377,-511.78028173,0.00019178,2]
[382356414,1756585846386,-1763.2,0.00019178,2]
[382356417,1756585846395,-480.0,0.00019178,2]
[382356420,1756585846405,-480.0,0.00019178,2]
[382356423,1756585846415,-480.0,0.00019178,2]
[382356425,1756585846424,-598.79,0.00019178,2]
[382356427,1756585846435,-737.9,0.00019178,2]
[382356429,1756585846443,-696.19,0.00019178,2]
[382356430,1756585846453,-151.0,0.00019178,2]
[382356432,1756585846463,-494.83,0.00019178,2]
[382356434,1756585846472,-480.0,0.00019178,2]
[382356436,1756585846482,-625.0,0.00019178,2]
[382356438,1756585846491,-1546.55,0.00019178,2]
[382356440,1756585846500,-480.0,0.00019178,2]
[382356442,1756585846509,-575.17,0.00019178,2]
[382356444,1756585846520,-480.0,0.00019178,2]
[382356446,1756585846530,-480.0,0.00019178,2]
[382356448,1756585846540,-1195.33,0.00019178,2]
[382356451,1756585846550,-1539.15,0.00019178,2]
[382356452,1756585846559,-735.27,0.00019178,2]
[382356454,1756585846568,-480.0,0.00019178,2]
[382356456,1756585846578,-480.0,0.00019178,2]
[382356458,1756585846588,-296.88828713,0.00019178,2]